bitfinex-derivatives/quotes_BTCF0:USTF0_20250327
["timestamp","ask_amount","ask_price","bid_price","bid_amount"]
[1743097046753,0.13344768,86842.0,86841.0,0.6495731]
[1743097046955,0.27081399,86842.0,86841.0,0.6495731]
[1743097047162,0.27241399,86842.0,86841.0,0.6495731]
[1743097047757,0.27170275,86842.0,86841.0,0.6495731]
[1743097047962,0.26522842,86842.0,86841.0,0.6495731]
[1743097048466,0.15005612,86842.0,86841.0,0.6495731]
[1743097048864,0.14845612,86842.0,86841.0,0.6495731]
[1743097049063,0.15001613,86842.0,86841.0,0.6495731]
[1743097049261,0.26518843,86842.0,86841.0,0.6495731]
[1743097050263,0.1151737,86841.0,86840.0,0.00017262]
[1743097050464,0.12578351,86841.0,86840.0,0.00025262]
[1743097050769,0.13237032,86841.0,86840.0,0.00017262]
[1743097051470,0.13256156,86841.0,86840.0,0.11534762]
[1743097051870,0.19186156,86841.0,86840.0,0.11534762]
[1743097052655,0.19186156,86841.0,86840.0,0.00017262]
[1743097052862,0.20248754,86841.0,86840.0,0.00017262]
[1743097053168,0.21752081,86841.0,86840.0,0.00017262]
[1743097053373,0.21763554,86841.0,86840.0,0.00017262]
[1743097053670,0.33627554,86841.0,86840.0,0.00017262]
[1743097053865,0.33627554,86841.0,86838.0,8e-05]
[1743097053866,0.1151816,86835.0,86834.0,8e-05]
[1743097054169,0.50041065,86835.0,86834.0,8e-05]
[1743097054386,0.52634479,86835.0,86834.0,8e-05]
[1743097054671,0.52634479,86835.0,86829.0,0.27490752]
[1743097054672,0.0575934,86831.0,86829.0,0.27490752]
[1743097054972,0.2050186,86830.0,86829.0,0.39009712]
[1743097055173,0.26407861,86830.0,86829.0,0.39009712]
[1743097055475,0.1151942,86826.0,86825.0,0.0575974]
[1743097055766,0.19091578,86826.0,86825.0,0.18437089]
[1743097055967,0.41900938,86826.0,86825.0,0.18437089]
[1743097056272,0.30381578,86826.0,86825.0,0.18437089]
[1743097056469,0.41900938,86826.0,86825.0,0.18437089]
[1743097057169,0.29100938,86826.0,86825.0,0.18437089]
[1743097057671,0.29100938,86826.0,86821.0,8e-05]
[1743097057672,0.17581578,86826.0,86821.0,8e-05]
[1743097057861,0.1151989,86822.0,86821.0,0.1728769]
[1743097058164,0.14114795,86822.0,86821.0,0.1727969]
[1743097058362,0.26214937,86822.0,86821.0,0.1727969]
[1743097058575,0.27936216,86822.0,86821.0,0.1727969]
[1743097059275,0.15696184,86822.0,86821.0,0.1727969]
[1743097059464,0.15696184,86822.0,86821.0,0.18427569]
[1743097059665,0.15644184,86822.0,86821.0,0.30527569]
[1743097059866,0.15896184,86822.0,86821.0,0.30527569]
[1743097060271,0.27416074,86822.0,86821.0,0.30527569]
[1743097060467,0.15896184,86822.0,86821.0,0.18427569]
[1743097060860,0.15896184,86822.0,86821.0,0.30527569]
[1743097060861,0.15744184,86822.0,86821.0,0.30527569]
[1743097061067,0.17204584,86830.0,86829.0,0.1151896]
[1743097061268,0.17356584,86830.0,86829.0,0.4759896]
[1743097061469,0.17356584,86830.0,86829.0,0.5363896]
[1743097061771,0.17204584,86830.0,86829.0,0.5363896]
[1743097062471,0.17404584,86830.0,86829.0,0.5952896]
[1743097062671,0.17556584,86830.0,86829.0,0.5952896]
[1743097063076,0.0575745,86860.0,86829.0,0.6301]
[1743097063277,0.0574,86846.0,86845.0,0.1151684]
[1743097063469,0.0574,86846.0,86845.0,0.2312684]
[1743097063670,0.0574,86846.0,86845.0,0.4210284]
[1743097063877,0.0574,86846.0,86845.0,0.2870684]
[1743097064174,0.0574,86846.0,86845.0,0.4209884]
[1743097064580,0.0574,86846.0,86845.0,0.2870684]
[1743097064769,0.0574,86846.0,86845.0,0.4209884]
[1743097065078,0.0584,86846.0,86845.0,0.43244412]
[1743097065475,0.0584,86846.0,86845.0,0.4209884]
[1743097065669,0.0584,86846.0,86845.0,0.2870684]
[1743097065869,0.0594,86846.0,86845.0,0.4227084]
[1743097066075,0.0594,86846.0,86845.0,0.2890684]
[1743097066476,0.0594,86846.0,86845.0,0.4226684]
[1743097067077,0.0594,86846.0,86845.0,0.4224684]
[1743097067272,0.0594,86846.0,86845.0,0.4224284]
[1743097067473,0.0594,86846.0,86845.0,0.2890684]
[1743097067782,0.0594,86846.0,86845.0,0.4223484]
[1743097067972,0.0594,86846.0,86845.0,0.2890684]
[1743097068471,0.116,86846.0,86845.0,0.2890684]
[1743097069480,0.11704001,86846.0,86845.0,0.2890684]
[1743097069681,0.116,86846.0,86845.0,0.2890684]
[1743097069878,0.11704001,86846.0,86845.0,0.2890684]
[1743097070081,0.002,86846.0,86845.0,0.2890684]
[1743097073081,0.10317271,86850.0,86848.0,0.1151644]
[1743097073282,0.10331441,86854.0,86853.0,0.1151577]
[1743097073488,0.10331441,86854.0,86853.0,0.4759577]
[1743097073684,0.10331441,86854.0,86853.0,0.4765577]
[1743097073685,0.22413442,86854.0,86853.0,0.4765577]
[1743097073879,0.22301441,86854.0,86853.0,0.4759577]
[1743097074881,0.22401441,86854.0,86853.0,0.4779577]
[1743097075284,0.22501441,86854.0,86853.0,0.4779577]
[1743097076878,0.34017081,86854.0,86853.0,0.4779577]
[1743097077587,0.23407322,86854.0,86853.0,0.4779577]
[1743097078386,0.12187273,86854.0,86853.0,0.4779577]
[1743097078780,0.12299274,86854.0,86853.0,0.4786377]
[1743097079486,0.12187273,86854.0,86853.0,0.5394377]
[1743097079892,0.12187273,86854.0,86853.0,0.5977377]
[1743097080693,0.12291274,86854.0,86853.0,0.5977377]
[1743097081389,0.12187273,86854.0,86853.0,0.5977377]
[1743097081592,0.12299274,86854.0,86853.0,0.5977377]
[1743097081794,0.12299274,86854.0,86853.0,0.4786377]
[1743097082286,0.12187273,86854.0,86853.0,0.5974377]
[1743097082485,0.12291274,86854.0,86853.0,0.5974377]
[1743097083393,0.12187273,86854.0,86853.0,0.5974377]
[1743097083799,0.12291274,86854.0,86853.0,0.5974377]
[1743097084402,0.12291274,86854.0,86853.0,0.4786377]
[1743097084787,0.23806914,86854.0,86853.0,0.4786377]
[1743097085980,0.12291274,86854.0,86853.0,0.4786377]
[1743097086394,0.12291274,86854.0,86853.0,0.5341377]
[1743097086590,0.12299274,86854.0,86853.0,0.5341377]
[1743097086895,0.12187273,86854.0,86853.0,0.5341377]
[1743097087085,0.12187273,86854.0,86853.0,0.5956377]
[1743097087281,0.12187273,86854.0,86853.0,0.6540377]
[1743097088198,0.12291274,86854.0,86853.0,0.6540377]
[1743097088497,0.12187273,86854.0,86853.0,0.6540377]
[1743097088685,0.12291274,86854.0,86853.0,0.6540377]
[1743097088891,0.12187273,86854.0,86853.0,0.6107177]
[1743097089097,0.23702913,86854.0,86853.0,0.4786377]
[1743097089399,0.23814914,86854.0,86853.0,0.4786377]
[1743097089701,0.12299274,86854.0,86853.0,0.4786377]
[1743097089898,0.18419274,86854.0,86853.0,0.4786377]
[1743097091700,0.18307273,86854.0,86853.0,0.4786377]
[1743097092697,0.18419274,86854.0,86853.0,0.4786377]
[1743097093498,0.29934914,86854.0,86853.0,0.4786377]
[1743097094202,0.18419274,86854.0,86853.0,0.4786377]
[1743097094696,0.29934914,86854.0,86853.0,0.4786377]
[1743097095200,0.18419274,86854.0,86853.0,0.4786377]
[1743097095795,0.29934914,86854.0,86853.0,0.4786377]
[1743097098901,0.18419274,86854.0,86853.0,0.4786377]
[1743097099598,0.29934914,86854.0,86853.0,0.4786377]
[1743097102904,0.12299274,86854.0,86853.0,0.4786377]
[1743097103105,0.23814914,86854.0,86853.0,0.4786377]
[1743097104199,0.12299274,86854.0,86853.0,0.4786377]
[1743097104796,0.12299274,86854.0,86853.0,0.5924377]
[1743097107701,0.12299274,86854.0,86853.0,0.4786377]
[1743097107903,0.12299274,86854.0,86853.0,0.5323377]
[1743097108409,0.12299274,86854.0,86853.0,0.5896377]
[1743097108999,0.12299274,86854.0,86853.0,0.4786377]
[1743097111711,0.23814914,86854.0,86853.0,0.4786377]
[1743097112306,0.12299274,86854.0,86853.0,0.4786377]
[1743097112605,0.23814914,86854.0,86853.0,0.4786377]
[1743097114609,0.23814914,86854.0,86853.0,0.36348]
[1743097115415,0.23814914,86854.0,86853.0,0.00268]
[1743097116002,0.23814914,86854.0,86853.0,0.002]
[1743097116405,0.24445624,86854.0,86853.0,0.002]
[1743097116714,0.24445624,86854.0,86851.0,8e-05]
[1743097116715,0.1151591,86852.0,86851.0,8e-05]
[1743097116911,0.1151684,86845.0,86844.0,0.20693439]
[1743097117106,0.11620841,86845.0,86844.0,0.20757439]
[1743097117307,0.11620841,86845.0,86844.0,0.20693439]
[1743097117613,0.17761551,86845.0,86844.0,0.20693439]
[1743097117815,0.17761551,86845.0,86844.0,0.20753439]
[1743097118010,0.17761551,86845.0,86844.0,0.20693439]
[1743097119010,0.17661551,86845.0,86844.0,0.20693439]
[1743097119720,0.17761551,86845.0,86844.0,0.20693439]
[1743097119907,0.23251551,86845.0,86844.0,0.20793439]
[1743097120108,0.24404823,86845.0,86844.0,0.20793439]
[1743097120908,0.24404823,86845.0,86844.0,0.001]
[1743097121113,0.30004379,86845.0,86844.0,0.001]
[1743097121311,0.1151776,86838.0,86837.0,0.00017273]
[1743097121618,0.47701761,86838.0,86837.0,0.00017273]
[1743097121822,0.48332471,86838.0,86837.0,0.00077273]
[1743097122116,0.48332471,86838.0,86837.0,0.00017273]
[1743097122317,0.59442471,86838.0,86837.0,0.00017273]
[1743097122513,0.59542471,86838.0,86837.0,0.00017273]
[1743097123112,0.59642471,86838.0,86837.0,0.00017273]
[1743097125423,0.65382471,86838.0,86837.0,0.00017273]
[1743097125621,0.64751761,86838.0,86837.0,0.00017273]
[1743097126723,0.65373099,86838.0,86837.0,0.00017273]
[1743097128624,0.78105099,86838.0,86837.0,0.00017273]
[1743097129218,0.5575654,86838.0,86837.0,0.00017273]
[1743097129415,0.55135202,86838.0,86837.0,0.00077273]
[1743097129823,0.55155202,86838.0,86837.0,0.00077273]
[1743097130125,0.42403202,86838.0,86837.0,0.00077273]
[1743097130331,0.55151202,86838.0,86837.0,0.00077273]
[1743097130722,0.55792758,86838.0,86837.0,0.00077273]
[1743097132428,0.55756758,86838.0,86837.0,0.00077273]
[1743097132925,0.55748758,86838.0,86837.0,0.00077273]
[1743097133132,0.55748758,86838.0,86837.0,0.11595173]
[1743097133426,0.29313317,86838.0,86837.0,0.11595173]
[1743097133728,0.12055557,86838.0,86837.0,0.11595173]
[1743097133927,0.12055557,86838.0,86837.0,0.22875173]
[1743097134119,0.11414001,86838.0,86837.0,0.22875173]
[1743097135129,0.11821761,86838.0,86837.0,0.22875173]
[1743097135530,0.22961761,86838.0,86837.0,0.22875173]
[1743097140836,0.22961761,86838.0,86837.0,0.11595173]
[1743097141233,0.22961761,86838.0,86837.0,0.00077273]
[1743097141441,0.22961761,86838.0,86837.0,0.11595173]
[1743097141626,0.35565761,86838.0,86837.0,0.11595173]
[1743097141829,0.36196102,86838.0,86837.0,0.11595173]
[1743097142735,0.23592102,86838.0,86837.0,0.11595173]
[1743097142942,0.36180102,86838.0,86837.0,0.11595173]
[1743097143138,0.24662342,86838.0,86837.0,0.11595173]
[1743097143338,0.24662342,86838.0,86837.0,0.16905173]
[1743097143541,0.23592102,86838.0,86837.0,0.22415173]
[1743097145344,0.12074342,86838.0,86837.0,0.22415173]
[1743097145739,0.00304001,86838.0,86837.0,0.22415173]
[1743097145938,0.17168303,86845.0,86844.0,0.1151697]
[1743097146146,0.17248303,86845.0,86844.0,0.4766497]
[1743097146348,0.29387728,86845.0,86844.0,0.4766497]
[1743097146745,0.17870888,86845.0,86844.0,0.5848497]
[1743097146946,0.29600888,86845.0,86844.0,0.5848497]
[1743097147150,0.29700888,86845.0,86844.0,0.5848497]
[1743097147339,0.29800888,86845.0,86844.0,0.5848497]
[1743097147534,0.41317728,86845.0,86844.0,0.5848497]
[1743097147736,0.29800888,86845.0,86844.0,0.5848497]
[1743097149854,0.12632585,86845.0,86844.0,0.5848497]
[1743097150547,0.00902585,86845.0,86844.0,0.5848497]
[1743097150745,0.3608,86882.0,86851.0,0.1151604]
[1743097150950,0.20655783,86862.0,86861.0,0.4759471]
[1743097151149,0.108,86871.0,86870.0,0.1151352]
[1743097151347,0.108,86871.0,86870.0,0.4759352]
[1743097151553,0.10892,86871.0,86870.0,0.4768152]
[1743097151941,0.10892,86871.0,86870.0,0.5892152]
[1743097152456,0.05412,86871.0,86870.0,0.5892152]
[1743097152947,0.0548,86876.0,86875.0,0.1151286]
[1743097153148,0.05540001,86876.0,86875.0,0.1162886]
[1743097153547,0.11000001,86876.0,86875.0,0.1162886]
[1743097153742,0.22512731,86876.0,86875.0,0.1162886]
[1743097154149,0.11100001,86876.0,86875.0,0.1172886]
[1743097154654,0.22712731,86876.0,86875.0,0.1192886]
[1743097155749,0.22612731,86876.0,86875.0,0.1182886]
[1743097155944,0.22612731,86876.0,86875.0,0.1242886]
[1743097160252,0.22612731,86876.0,86875.0,0.00916]
[1743097161447,0.22612731,86876.0,86875.0,0.1242886]
[1743097162851,0.22612731,86876.0,86875.0,0.00916]
[1743097163053,0.22612731,86876.0,86875.0,0.1242886]
[1743097165356,0.28211087,86876.0,86875.0,0.1242886]
[1743097166363,0.28211087,86876.0,86875.0,0.1822886]
[1743097166970,0.28211087,86876.0,86875.0,0.1242886]
[1743097168165,0.28211087,86876.0,86875.0,0.1822886]
[1743097168662,0.00017273,86879.0,86878.0,0.1151246]
[1743097168853,0.00017273,86879.0,86878.0,0.5892846]
[1743097169057,0.05777273,86879.0,86878.0,0.5892846]
[1743097169255,0.05845273,86879.0,86878.0,0.60042371]
[1743097169458,0.05777273,86879.0,86878.0,0.60042371]
[1743097169857,0.05909273,86879.0,86878.0,0.60642371]
[1743097170052,0.05777273,86879.0,86878.0,0.60642371]
[1743097170767,0.05777273,86879.0,86878.0,0.61242371]
[1743097171068,0.00017273,86879.0,86878.0,0.61242371]
[1743097171259,0.0576,86899.0,86898.0,0.1150981]
[1743097171462,0.1733768,86899.0,86898.0,0.0014]
[1743097171657,0.0575524,86893.0,86892.0,0.1151034]
[1743097171862,0.05895241,86893.0,86892.0,0.1165034]
[1743097172566,0.11865241,86893.0,86892.0,0.1165034]
[1743097172962,0.06110001,86893.0,86892.0,0.1740557]
[1743097173361,0.1748047,86893.0,86892.0,0.2297557]
[1743097173560,0.17620471,86893.0,86892.0,0.1740557]
[1743097173860,0.23190471,86893.0,86892.0,0.1740557]
[1743097174262,0.23190471,86893.0,86892.0,0.1800557]
[1743097175069,0.23190471,86893.0,86892.0,0.1860557]
[1743097178671,0.11680001,86893.0,86892.0,0.1860557]
[1743097179468,0.23190471,86893.0,86892.0,0.1860557]
[1743097181271,0.39186709,86893.0,86892.0,0.012]
[1743097181573,0.39186709,86893.0,86892.0,0.01292]
[1743097182374,0.39186709,86893.0,86892.0,0.1855757]
[1743097185775,0.39186709,86893.0,86892.0,0.0704723]
[1743097188073,0.44784699,86893.0,86892.0,0.0704723]
[1743097189877,0.44784699,86893.0,86892.0,0.01292]
[1743097190273,0.44784699,86893.0,86892.0,0.1280261]
[1743097198476,0.44784699,86893.0,86892.0,0.1220261]
[1743097198676,0.44784699,86893.0,86892.0,0.1280261]
[1743097199782,0.44784699,86893.0,86892.0,0.1160261]
[1743097199987,0.44784699,86893.0,86892.0,0.1280261]
[1743097200385,0.44784699,86893.0,86892.0,0.1220261]
[1743097200585,0.44784699,86893.0,86892.0,0.2432261]
[1743097201389,0.44784699,86893.0,86892.0,0.2372261]
[1743097201683,0.44784699,86893.0,86892.0,0.2432261]
[1743097202083,0.44784699,86893.0,86892.0,0.1280261]
[1743097202586,0.44784699,86893.0,86892.0,0.02824808]
[1743097202883,0.44784699,86893.0,86892.0,0.01292]
[1743097203485,0.44784699,86893.0,86892.0,0.1280261]
[1743097204084,0.33274229,86893.0,86892.0,0.1854261]
[1743097204279,0.44784699,86893.0,86892.0,0.1854261]
[1743097205190,0.44784699,86893.0,86892.0,0.20053635]
[1743097205688,0.33274229,86893.0,86892.0,0.20053635]
[1743097205991,0.33274229,86893.0,86892.0,0.31563635]
[1743097206188,0.33274229,86893.0,86892.0,0.3005261]
[1743097206589,0.33274229,86893.0,86892.0,0.31187139]
[1743097207088,0.33274229,86893.0,86892.0,0.30587139]
[1743097207298,0.23190471,86893.0,86892.0,0.3005261]
[1743097208388,0.23190471,86893.0,86892.0,0.2945261]
[1743097208592,0.23190471,86893.0,86892.0,0.3005261]
[1743097208791,0.23190471,86893.0,86892.0,0.1280261]
[1743097208988,0.28990471,86893.0,86892.0,0.1280261]
[1743097209292,0.30135143,86893.0,86892.0,0.1280261]
[1743097212283,0.30135143,86893.0,86892.0,0.01292]
[1743097212483,0.1151127,86887.0,86886.0,8e-05]
[1743097212687,0.1151153,86885.0,86884.0,0.00017261]
[1743097212898,0.4765553,86885.0,86884.0,0.00081261]
[1743097213288,0.5861553,86885.0,86884.0,0.00081261]
[1743097213693,0.7100353,86885.0,86876.0,8e-05]
[1743097213901,0.1151259,86877.0,86876.0,0.00076]
[1743097214092,0.1158859,86877.0,86876.0,0.00076]
[1743097214398,0.1158859,86877.0,86876.0,0.00068]
[1743097214399,0.2831859,86877.0,86876.0,0.00068]
[1743097214698,0.39829182,86877.0,86876.0,0.00068]
[1743097215685,0.1151312,86873.0,86872.0,8e-05]
[1743097215886,0.1151312,86873.0,86868.0,0.00017261]
[1743097215887,0.1151365,86869.0,86868.0,0.00017261]
[1743097216095,0.4736965,86869.0,86868.0,0.00017261]
[1743097216294,0.4736965,86869.0,86868.0,0.00081261]
[1743097216492,0.4736965,86869.0,86868.0,0.00017261]
[1743097216894,0.4706965,86869.0,86868.0,0.00017261]
[1743097217197,0.48308858,86869.0,86868.0,0.00417261]
[1743097217599,0.48308858,86869.0,86868.0,0.00477261]
[1743097217787,0.48308858,86869.0,86868.0,0.00417261]
[1743097217988,0.48308858,86869.0,86868.0,0.00485261]
[1743097218799,0.48408858,86869.0,86868.0,0.00717261]
[1743097218995,0.48408858,86869.0,86868.0,0.00777261]
[1743097219593,0.48408858,86869.0,86868.0,0.00717261]
[1743097221199,0.48408858,86869.0,86854.0,0.1129773]
[1743097221200,0.1727319,86857.0,86854.0,0.1129773]
[1743097221394,0.1151551,86855.0,86854.0,0.1136573]
[1743097221700,0.1159551,86855.0,86854.0,0.1136573]
[1743097222001,0.2268551,86855.0,86854.0,0.1136573]
[1743097222591,0.2278551,86855.0,86854.0,0.1166573]
[1743097222903,0.2278551,86855.0,86854.0,0.1216573]
[1743097223396,0.24043142,86855.0,86854.0,0.1216573]
[1743097223694,0.1137,86855.0,86854.0,0.1216573]
[1743097223900,0.2288551,86855.0,86854.0,0.1216573]
[1743097224298,0.2288551,86855.0,86854.0,0.2379573]
[1743097224899,0.0028,86855.0,86854.0,0.5987573]
[1743097225100,0.00272,86855.0,86854.0,0.63881282]
[1743097225296,0.00272,86855.0,86854.0,0.6388096]
[1743097225502,0.00272,86855.0,86854.0,0.9688096]
[1743097226106,0.1178751,86855.0,86854.0,0.94416203]
[1743097226302,0.00272,86855.0,86854.0,0.95574937]
[1743097226804,0.00272,86855.0,86854.0,0.62574937]
[1743097227018,0.1178751,86855.0,86854.0,0.6253135]
[1743097227802,0.00272,86855.0,86854.0,0.6253135]
[1743097228608,0.1731751,86855.0,86854.0,0.6253135]
[1743097228907,0.05802,86855.0,86854.0,0.6253135]
[1743097231109,0.00272,86855.0,86854.0,0.6253135]
[1743097231405,0.002,86855.0,86854.0,0.6253135]
[1743097232712,0.002,86855.0,86854.0,0.62535204]
[1743097233804,1e-07,86855.0,86854.0,0.62535204]
[1743097234408,1e-07,86855.0,86854.0,0.76034464]
[1743097234601,0.10310296,86862.0,86854.0,0.76034464]
[1743097234602,8e-05,86876.0,86861.0,0.0575735]
[1743097234798,0.20620593,86879.0,86878.0,0.1151246]
[1743097235000,0.20700593,86879.0,86878.0,0.13074276]
[1743097235212,8e-05,86890.0,86889.0,0.11511]
[1743097235407,0.24057359,86892.0,86890.0,0.1151074]
[1743097235408,0.0571,86891.0,86890.0,0.1151074]
[1743097235604,0.1729674,86891.0,86890.0,0.13072556]
[1743097236411,0.2299674,86891.0,86890.0,0.13067025]
[1743097236813,0.2309674,86891.0,86890.0,0.13567025]
[1743097237514,0.2319674,86891.0,86890.0,0.13767025]
[1743097238106,0.2319674,86891.0,86890.0,0.1227074]
[1743097238317,0.2319674,86891.0,86890.0,0.13767568]
[1743097240617,0.2319674,86891.0,86890.0,0.02256828]
[1743097240807,0.2852674,86891.0,86890.0,0.13767698]
[1743097241214,0.2852674,86891.0,86890.0,0.02256828]
[1743097241716,0.2852674,86891.0,86890.0,0.13767698]
[1743097244304,0.2852674,86891.0,86890.0,0.02256828]
[1743097244710,0.2852674,86891.0,86890.0,0.13767698]
[1743097245622,0.2852674,86891.0,86890.0,0.02256828]
[1743097246114,0.6460674,86891.0,86890.0,0.02256828]
[1743097246316,0.6460674,86891.0,86890.0,0.02196828]
[1743097247315,0.70204151,86891.0,86890.0,0.02196828]
[1743097247919,0.70204151,86891.0,86890.0,0.022008]
[1743097248421,0.34124151,86891.0,86890.0,0.022008]
[1743097250224,0.70204151,86891.0,86890.0,0.022008]
[1743097250430,0.115118,86883.0,86882.0,0.00017261]
[1743097250620,0.115118,86883.0,86882.0,0.00081261]
[1743097250621,0.236398,86883.0,86882.0,0.00081261]
[1743097251222,0.340898,86883.0,86882.0,0.00081261]
[1743097251421,0.340898,86883.0,86882.0,0.11593191]
[1743097251634,0.340898,86883.0,86882.0,0.11693191]
[1743097251635,0.341898,86883.0,86882.0,0.11693191]
[1743097253029,0.341898,86883.0,86882.0,0.00381261]
[1743097253329,0.342898,86883.0,86882.0,0.00381261]
[1743097253926,0.342898,86883.0,86882.0,0.00317261]
[1743097254127,0.342898,86883.0,86882.0,0.00377261]
[1743097254528,0.342898,86883.0,86882.0,0.00317261]
[1743097254926,0.1151312,86873.0,86863.0,0.115144]
[1743097255237,0.1151418,86865.0,86864.0,0.3608]
[1743097255441,0.1151418,86865.0,86862.0,0.20648378]
[1743097255442,0.1151445,86863.0,86862.0,0.20648378]
[1743097255627,0.4767445,86863.0,86862.0,0.20720378]
[1743097255947,0.5971845,86863.0,86862.0,0.20720378]
[1743097256238,0.7020845,86863.0,86862.0,0.20720378]
[1743097256946,0.7030845,86863.0,86862.0,0.20920378]
[1743097257328,0.59434746,86863.0,86862.0,0.20920378]
[1743097257534,0.83075193,86863.0,86862.0,0.20920378]
[1743097258237,0.83075193,86863.0,86862.0,0.00272]
[1743097258445,0.83075193,86863.0,86862.0,0.002]
[1743097258636,0.83075193,86863.0,86862.0,0.1177458]
[1743097258839,0.83075193,86863.0,86862.0,0.002]
[1743097262141,0.83043193,86863.0,86862.0,0.002]
[1743097262738,0.83047193,86863.0,86862.0,0.002]
[1743097264137,0.46967193,86863.0,86862.0,0.002]
[1743097264346,0.23454746,86863.0,86862.0,0.1171458]
[1743097264531,0.35442746,86863.0,86862.0,0.2249658]
[1743097264731,0.23454746,86863.0,86862.0,0.43982]
[1743097265234,0.23454746,86863.0,86862.0,0.10982]
[1743097265427,0.23454746,86863.0,86862.0,0.00272]
[1743097265630,0.23454746,86863.0,86862.0,0.002]
[1743097266636,0.23454746,86863.0,86862.0,0.0026]
[1743097267230,0.23454746,86863.0,86862.0,0.1177458]
[1743097267431,0.0028,86863.0,86862.0,0.1177458]
[1743097267637,0.1171445,86863.0,86862.0,0.2296458]
[1743097267844,0.1179045,86863.0,86862.0,0.2296458]
[1743097268145,0.2276045,86863.0,86862.0,0.2296458]
[1743097269345,0.23882961,86863.0,86862.0,0.2296458]
[1743097269549,0.2276045,86863.0,86862.0,0.2296458]
[1743097270850,0.23916131,86863.0,86862.0,0.2296458]
[1743097272134,0.2276045,86863.0,86862.0,0.2296458]
[1743097274743,0.1179045,86863.0,86862.0,0.2296458]
[1743097275143,0.1708045,86863.0,86862.0,0.2296458]
[1743097275546,0.2271045,86863.0,86862.0,0.2296458]
[1743097276248,0.11196,86863.0,86862.0,0.2296458]
[1743097276449,0.002,86863.0,86862.0,0.2296458]
[1743097276656,0.1171445,86863.0,86862.0,0.2296458]
[1743097276858,0.1178645,86863.0,86862.0,0.2296458]
[1743097277155,0.2289645,86863.0,86862.0,0.2296458]
[1743097278448,0.00272,86863.0,86862.0,0.2296458]
[1743097278649,0.002,86863.0,86862.0,0.2296458]
[1743097279253,0.0578007,86881.0,86870.0,0.1151352]
[1743097279457,0.0086316,86899.0,86870.0,0.4765352]
[1743097279458,0.054,86877.0,86870.0,0.4765352]
[1743097279644,0.1151273,86876.0,86870.0,0.6367352]
[1743097279851,0.05408,86877.0,86870.0,0.6367352]
[1743097280060,0.169126,86877.0,86870.0,0.6367352]
[1743097280255,0.054,86877.0,86870.0,0.6367352]
[1743097280448,0.00117261,86871.0,86870.0,0.6367352]
[1743097280649,0.00217261,86871.0,86870.0,0.64820243]
[1743097281258,0.17193033,86879.0,86878.0,0.1151246]
[1743097281459,0.17269033,86879.0,86878.0,0.4759246]
[1743097281652,0.17193033,86879.0,86878.0,0.5827846]
[1743097281957,0.225194,86886.0,86879.0,0.1151233]
[1743097281958,0.17193033,86880.0,86879.0,0.1151233]
[1743097282253,0.08034233,86880.0,86879.0,0.2218233]
[1743097282447,0.03747432,86880.0,86879.0,0.3718233]
[1743097283250,0.20661398,86886.0,86879.0,0.2567]
[1743097283543,0.20661398,86886.0,86885.0,0.4759153]
[1743097283741,0.20733398,86886.0,86885.0,0.5955553]
[1743097283958,0.20661398,86886.0,86885.0,0.7567553]
[1743097284443,0.20761398,86886.0,86885.0,0.7567553]
[1743097284846,0.20861398,86886.0,86885.0,0.7577553]
[1743097285053,0.00017261,86888.0,86885.0,0.7577553]
[1743097285054,0.00017261,86888.0,86887.0,0.1151127]
[1743097285255,0.00017261,86888.0,86887.0,0.15639543]
[1743097285463,0.00017261,86888.0,86887.0,0.32162207]
[1743097286459,0.00117261,86888.0,86887.0,0.28201934]
[1743097286656,1e-08,86888.0,86887.0,0.2667927]
[1743097287558,0.00100001,86888.0,86887.0,0.2677927]
[1743097287957,0.00100001,86888.0,86887.0,0.5977927]
[1743097290747,0.00100001,86888.0,86887.0,0.4477927]
[1743097290952,0.00100001,86888.0,86887.0,0.2361927]
[1743097292256,0.00100001,86888.0,86887.0,0.1177927]
[1743097292467,0.00100001,86888.0,86887.0,0.2361927]
[1743097293362,0.00100001,86888.0,86887.0,0.3439927]
[1743097293566,0.00100001,86888.0,86887.0,0.2255927]
[1743097293767,0.00100001,86888.0,86887.0,0.3438727]
[1743097294664,0.1087,86895.0,86887.0,0.37876]
[1743097294867,0.1113,86903.0,86900.0,0.0575477]
[1743097295060,0.1113,86903.0,86902.0,0.4758928]
[1743097295061,0.1121,86903.0,86902.0,0.4758928]
[1743097295261,0.1113,86903.0,86902.0,0.8065328]
[1743097295569,0.1113,86903.0,86902.0,0.9117328]
[1743097295959,0.1113,86903.0,86902.0,1.0304528]
[1743097296560,0.11202,86903.0,86902.0,1.04166284]
[1743097297664,0.11202,86903.0,86902.0,1.05694273]
[1743097297866,0.1113,86903.0,86902.0,1.05994273]
[1743097298170,0.1113,86903.0,86902.0,1.06394273]
[1743097299476,0.00017261,86911.0,86910.0,0.1150822]
[1743097299667,0.00017261,86911.0,86910.0,0.5856822]
[1743097299968,0.00089261,86911.0,86910.0,0.60096209]
[1743097300761,0.00089261,86911.0,86910.0,0.60296209]
[1743097300968,0.00089261,86911.0,86910.0,0.60396209]
[1743097302460,0.00089261,86911.0,86910.0,0.61879777]
[1743097302868,0.00017261,86911.0,86910.0,0.61879777]
[1743097303465,0.00017261,86911.0,86910.0,0.60396209]
[1743097304366,0.00017261,86911.0,86910.0,0.66954209]
[1743097304572,0.00097261,86911.0,86910.0,0.61284209]
[1743097306174,0.00017261,86911.0,86910.0,0.61284209]
[1743097306365,0.00017261,86911.0,86910.0,0.67964722]
[1743097306568,0.00017261,86911.0,86910.0,0.67964711]
[1743097306759,0.00017261,86911.0,86910.0,0.73634711]
[1743097307182,0.00017261,86911.0,86910.0,0.76094921]
[1743097307971,0.00017261,86911.0,86910.0,0.65234921]
[1743097308574,0.0536,86915.0,86914.0,0.1150769]
[1743097308772,0.1611,86915.0,86914.0,0.49146192]
[1743097309070,0.1611,86915.0,86914.0,0.60978192]
[1743097309376,0.1067,86915.0,86914.0,0.60978192]
[1743097309587,0.1067,86915.0,86914.0,0.77588192]
[1743097309777,0.05527261,86923.0,86921.0,0.1150677]
[1743097310074,1e-07,86922.0,86921.0,0.49141272]
[1743097310273,1e-08,86923.0,86922.0,0.1150663]
[1743097310460,1e-08,86923.0,86922.0,0.1156663]
[1743097310667,1e-08,86923.0,86922.0,0.57084619]
[1743097311475,1e-08,86923.0,86922.0,0.61103973]
[1743097311770,1e-08,86923.0,86922.0,0.63687541]
[1743097312760,0.00100001,86923.0,86922.0,0.63687541]
[1743097313167,1e-08,86923.0,86922.0,0.63687541]
[1743097313366,1e-08,86923.0,86922.0,0.61214092]
[1743097313967,1e-08,86923.0,86922.0,0.6120446]
[1743097314684,1e-08,86923.0,86922.0,1.35838892]
[1743097316381,1e-08,86923.0,86922.0,1.35938892]
[1743097317776,1e-08,86923.0,86922.0,1.3610721]
[1743097319278,0.00064001,86923.0,86922.0,1.3610721]
[1743097319485,0.00064001,86923.0,86922.0,1.36114096]
[1743097319682,0.00064001,86923.0,86922.0,1.36114094]
[1743097320281,0.27494124,86941.0,86935.0,0.1150491]